[Event "3rd FIDE WCCC Blitz U12 2019"]
[Site "Minsk"]
[Date "2019.08.18"]
[Round "6.6"]
[White "Ermakov, Maksim"]
[Black "Mochalov, Dmitriy"]
[Result "0-1"]
[ECO "A48"]
[WhiteElo "1720"]
[BlackElo "1852"]
[Annotator "NA"]
[PlyCount "74"]
[EventDate "2019.08.18"]
[EventType "swiss"]
[EventCountry "BLR"]
[SourceTitle "playchess.com"]
[Source "ChessBase"]
[SourceQuality "1"]
[TimeControl "300+2"]

1. d4 {[%emt 0:00:00]} Nf6 {[%emt 0:00:00]} 2. Nf3 {[%emt 0:00:02]} g6 {[%emt 0:00:02]} 3. e3 {[%emt 0:00:00]} Bg7 {[%emt 0:00:01]} 4. Be2 {[%emt 0:00:02]} O-O {[%emt 0:00:03]} 5. O-O {[%emt 0:00:01]} d6 {[%emt 0:00:01]} 6. c4 {[%emt 0:00:01]} Nbd7 {[%emt 0:00:01]} 7. Nc3 {[%emt 0:00:00]} e5 {[%emt 0:00:01]} 8. b4 {[%emt 0:00:01]} a5 {[%emt 0:00:06]} 9. bxa5 {[%emt 0:00:03]} Rxa5 {[%emt 0:00:02]} 10. Bb2 {[%emt 0:00:01]} Re8 {[%emt 0:00:04]} 11. Qc2 {[%emt 0:00:09]} c6 {[%emt 0:00:04]} 12. Rfd1 {[%emt 0:00:08]} Qe7 {[%emt 0:00:03]} 13. a4 {[%emt 0:00:04]} Ra8 {[%emt 0:00:13]} 14. Ba3 {[%emt 0:00:04]} exd4 {[%emt 0:00:15]} 15. Nxd4 {[%emt 0:00:12]} Nc5 {[%emt 0:00:03]} 16. Bf3 {[%emt 0:00:07]} Qc7 {[%emt 0:00:11]} 17. Rab1 {[%emt 0:00:16]} Bg4 {[%emt 0:00:11]} 18. Bxg4 {[%emt 0:00:28]} Nxg4 {[%emt 0:00:01]} 19. h3 {[%emt 0:00:06]} Ne5 {[%emt 0:00:01]} 20. Bxc5 dxc5 {[%emt 0:00:01]} 21. Nb3 {[%emt 0:00:09]} Nxc4 {[%emt 0:00:03]} 22. Nxc5 {[%emt 0:00:03]} Na3 {[%emt 0:00:02]} 23. Rxb7 {[%emt 0:00:09]} Qxb7 {[%emt 0:00:02]} 24. Nxb7 {[%emt 0:00:02]} Nxc2 {[%emt 0:00:01]} 25. Rc1 {[%emt 0:00:06]} Bxc3 {[%emt 0:00:05]} 26. Rxc2 {[%emt 0:00:01]} Be5 {[%emt 0:00:01]} 27. Rxc6 {[%emt 0:00:03]} Rxa4 {[%emt 0:00:01]} 28. f4 {[%emt 0:00:01]} Bg7 {[%emt 0:00:05]} 29. Kf2 {[%emt 0:00:01]} Ra2+ {[%emt 0:00:01]} 30. Kf3 {[%emt 0:00:01]} Ra3 {[%emt 0:00:01]} 31. Nd6 {[%emt 0:00:02]} Raxe3+ {[%emt 0:00:03]} 32. Kf2 {[%emt 0:00:01]} Re2+ {[%emt 0:00:05]} 33. Kf1 {[%emt 0:00:01]} Re1+ {[%emt 0:00:02]} 34. Kf2 {[%emt 0:00:01]} Bd4+ {[%emt 0:00:05]} 35. Kg3 {[%emt 0:00:02]} R8e3+ {[%emt 0:00:01]} 36. Kh2 {[%emt 0:00:02]} Rc3 {[%emt 0:00:15]} 37. Ra6 {[%emt 0:00:03]} Bg1+ {[%emt 0:00:03]} 0-1

[Event "3rd FIDE WCCC Blitz U12 2019"]
[Site "Minsk"]
[Date "2019.08.18"]
[Round "7.1"]
[White "Chyndygyr, Tamerlan"]
[Black "Navumenka, Mikhei"]
[Result "1/2-1/2"]
[ECO "A50"]
[WhiteElo "1984"]
[BlackElo "2148"]
[Annotator "NA"]
[PlyCount "111"]
[EventDate "2019.08.18"]
[EventType "swiss"]
[EventCountry "BLR"]
[SourceTitle "playchess.com"]
[Source "ChessBase"]
[SourceQuality "1"]
[TimeControl "300+2"]

1. d4 {[%emt 0:00:00]} Nf6 {[%emt 0:00:00]} 2. c4 {[%emt 0:00:01]} b6 {[%emt 0:00:00]} 3. Nf3 Bb7 4. Nbd2 {[%emt 0:00:05]} e6 {[%emt 0:00:01]} 5. e3 {[%emt 0:00:01]} Be7 {[%emt 0:00:03]} 6. Bd3 {[%emt 0:00:02]} c5 {[%emt 0:00:03]} 7. O-O {[%emt 0:00:03]} O-O {[%emt 0:00:02]} 8. b3 {[%emt 0:00:01]} d5 {[%emt 0:00:07]} 9. Bb2 {[%emt 0:00:01]} Nbd7 {[%emt 0:00:01]} 10. cxd5 {[%emt 0:00:03]} Nxd5 {[%emt 0:00:04]} 11. a3 {[%emt 0:00:05]} Bf6 {[%emt 0:00:01]} 12. Rc1 {[%emt 0:00:10]} h6 {[%emt 0:00:02]} 13. Qe2 {[%emt 0:00:05]} a6 {[%emt 0:00:07]} 14. Ne4 {[%emt 0:00:02]} Be7 {[%emt 0:00:04]} 15. Ne5 {[%emt 0:00:02]} cxd4 {[%emt 0:00:24]} 16. Bxd4 {[%emt 0:00:42]} Bxa3 {[%emt 0:00:30]} 17. Ra1 {[%emt 0:00:05]} Be7 {[%emt 0:00:03]} 18. Bxa6 {[%emt 0:00:18]} Bxa6 {[%emt 0:00:23]} 19. Rxa6 {[%emt 0:00:02]} Rxa6 {[%emt 0:00:26]} 20. Qxa6 {[%emt 0:00:02]} Nxe5 {[%emt 0:00:15]} 21. Bxe5 {[%emt 0:00:02]} Nb4 {[%emt 0:00:07]} 22. Qb5 {[%emt 0:00:06]} Qd5 {[%emt 0:00:10]} 23. Qxd5 {[%emt 0:00:21]} Nxd5 {[%emt 0:00:01]} 24. Ra1 {[%emt 0:00:14]} Rc8 {[%emt 0:00:05]} 25. g4 {[%emt 0:00:13]} f6 {[%emt 0:00:09]} 26. Bd4 {[%emt 0:00:53]} e5 {[%emt 0:00:37]} 27. Bb2 {[%emt 0:00:01]} Rc2 {[%emt 0:00:02]} 28. Ba3 {[%emt 0:00:01]} Bxa3 {[%emt 0:00:09]} 29. Rxa3 {[%emt 0:00:02]} Rb2 {[%emt 0:00:02]} 30. h4 {[%emt 0:00:09]} Nb4 {[%emt 0:00:36]} 31. Nd6 {[%emt 0:00:20]} Ra2 {[%emt 0:00:12]} 32. Rxa2 Nxa2 {[%emt 0:00:01]} 33. Kf1 {[%emt 0:00:17]} Kf8 {[%emt 0:00:09]} 34. h5 {[%emt 0:00:05]} Nc1 {[%emt 0:00:11]} 35. b4 {[%emt 0:00:04]} Na2 {[%emt 0:00:04]} 36. b5 {[%emt 0:00:02]} Nc3 {[%emt 0:00:01]} 37. Ke1 {[%emt 0:00:03]} Ke7 {[%emt 0:00:03]} 38. Nc8+ {[%emt 0:00:01]} Ke6 {[%emt 0:00:02]} 39. Nxb6 {[%emt 0:00:02]} Nxb5 {[%emt 0:00:01]} 40. Na4 {[%emt 0:00:14]} f5 {[%emt 0:00:12]} 41. f3 {[%emt 0:00:27]} Kf6 {[%emt 0:00:12]} 42. Kf2 {[%emt 0:00:02]} Nd6 {[%emt 0:00:10]} 43. Nc5 {[%emt 0:00:10]} e4 {[%emt 0:00:06]} 44. Kg3 {[%emt 0:00:19]} exf3 {[%emt 0:00:12]} 45. Kxf3 {[%emt 0:00:01]} Nc4 {[%emt 0:00:05]} 46. Nd7+ {[%emt 0:00:10]} Kg5 {[%emt 0:00:01]} 47. gxf5 {[%emt 0:00:01]} Kxf5 {[%emt 0:00:02]} 48. Nf8 {[%emt 0:00:06]} Ne5+ {[%emt 0:00:02]} 49. Kg3 {[%emt 0:00:02]} Kg5 {[%emt 0:00:07]} 50. Ne6+ {[%emt 0:00:01]} Kxh5 {[%emt 0:00:02]} 51. Nxg7+ {[%emt 0:00:01]} Kg5 {[%emt 0:00:03]} 52. e4 {[%emt 0:00:05]} h5 {[%emt 0:00:01]} 53. Nxh5 {[%emt 0:00:02]} Kxh5 {[%emt 0:00:02]} 54. Kf4 {[%emt 0:00:01]} Nc4 {[%emt 0:00:01]} 55. e5 {[%emt 0:00:01]} Nxe5 {[%emt 0:00:03]} 56. Ke4 1/2-1/2

[Event "3rd FIDE WCCC Blitz U12 2019"]
[Site "Minsk"]
[Date "2019.08.18"]
[Round "7.2"]
[White "Pidluznij, Gleb"]
[Black "Strybuk, Artsiom I"]
[Result "0-1"]
[ECO "D85"]
[WhiteElo "1925"]
[BlackElo "2200"]
[Annotator "NA"]
[PlyCount "54"]
[EventDate "2019.08.18"]
[EventType "swiss"]
[EventCountry "BLR"]
[SourceTitle "playchess.com"]
[Source "ChessBase"]
[SourceQuality "1"]
[TimeControl "300+2"]

1. d4 {[%emt 0:00:01]} Nf6 {[%emt 0:00:00]} 2. c4 {[%emt 0:00:01]} g6 {[%emt 0:00:00]} 3. Nc3 {[%emt 0:00:02]} d5 {[%emt 0:00:01]} 4. cxd5 {[%emt 0:00:07]} Nxd5 {[%emt 0:00:02]} 5. Na4 {[%emt 0:00:01]} Bg7 {[%emt 0:00:11]} 6. e4 {[%emt 0:00:05]} Nb6 {[%emt 0:00:02]} 7. Be3 {[%emt 0:00:02]} O-O {[%emt 0:00:03]} 8. Nf3 {[%emt 0:00:11]} Bg4 {[%emt 0:00:10]} 9. Be2 {[%emt 0:00:09]} Nc6 10. d5 {[%emt 0:00:44]} Bxf3 {[%emt 0:00:19]} 11. Bxf3 {[%emt 0:00:08]} Ne5 {[%emt 0:00:06]} 12. Be2 {[%emt 0:00:15]} Nec4 {[%emt 0:01:11]} 13. Bxb6 {[%emt 0:01:03]} Nxb6 {[%emt 0:00:06]} 14. Nxb6 {[%emt 0:00:09]} axb6 {[%emt 0:00:03]} 15. Qd2 {[%emt 0:00:08]} e6 {[%emt 0:00:28]} 16. O-O {[%emt 0:00:34]} exd5 {[%emt 0:00:03]} 17. exd5 {[%emt 0:00:01]} Qd6 {[%emt 0:00:05]} 18. Rfd1 {[%emt 0:00:27]} Rfe8 {[%emt 0:00:02]} 19. Bf3 {[%emt 0:00:22]} Qe5 {[%emt 0:00:25]} 20. Rab1 {[%emt 0:00:37]} Rxa2 {[%emt 0:00:30]} 21. d6 {[%emt 0:00:17]} cxd6 {[%emt 0:00:49]} 22. Qxd6 {[%emt 0:00:10]} Qxd6 {[%emt 0:00:07]} 23. Rxd6 {[%emt 0:00:02]} Rxb2 {[%emt 0:00:02]} 24. Rbd1 {[%emt 0:00:05]} Bf8 {[%emt 0:00:28]} 25. Rd7 {[%emt 0:00:05]} Bc5 {[%emt 0:00:03]} 26. Rf1 {[%emt 0:00:03]} Rxf2 {[%emt 0:00:03]} 27. Rb1 {[%emt 0:00:02]} Rd2+ {[%emt 0:00:03]} 0-1

[Event "3rd FIDE WCCC Blitz U12 2019"]
[Site "Minsk"]
[Date "2019.08.18"]
[Round "7.3"]
[White "Mikko, Rondo"]
[Black "Kolesov, Gordey"]
[Result "0-1"]
[ECO "A06"]
[WhiteElo "1514"]
[BlackElo "1761"]
[Annotator "NA"]
[PlyCount "106"]
[EventDate "2019.08.18"]
[EventType "swiss"]
[EventCountry "BLR"]
[SourceTitle "playchess.com"]
[Source "ChessBase"]
[SourceQuality "1"]
[TimeControl "300+2"]

1. Nf3 {[%emt 0:00:00]} d5 {[%emt 0:00:00]} 2. g3 {[%emt 0:00:01]} Bf5 {[%emt 0:00:00]} 3. d3 {[%emt 0:00:03]} e6 {[%emt 0:00:01]} 4. Bg2 {[%emt 0:00:02]} Nf6 {[%emt 0:00:00]} 5. O-O {[%emt 0:00:02]} h6 {[%emt 0:00:01]} 6. Nbd2 {[%emt 0:00:12]} Be7 {[%emt 0:00:04]} 7. b3 {[%emt 0:00:03]} c6 {[%emt 0:00:02]} 8. Bb2 {[%emt 0:00:02]} Nbd7 {[%emt 0:00:02]} 9. Re1 {[%emt 0:00:09]} O-O {[%emt 0:00:02]} 10. h3 {[%emt 0:00:05]} Re8 {[%emt 0:00:10]} 11. e4 {[%emt 0:00:08]} dxe4 {[%emt 0:00:02]} 12. Nxe4 {[%emt 0:00:04]} Nxe4 13. dxe4 {[%emt 0:00:01]} Bh7 {[%emt 0:00:07]} 14. Qe2 {[%emt 0:01:29]} Qc7 {[%emt 0:00:03]} 15. Rad1 {[%emt 0:00:07]} Rad8 {[%emt 0:00:00]} 16. Nd2 {[%emt 0:00:17]} Bc5 {[%emt 0:00:26]} 17. Nf1 {[%emt 0:00:08]} Bb4 {[%emt 0:00:17]} 18. c3 {[%emt 0:00:06]} Bc5 {[%emt 0:00:07]} 19. Ne3 {[%emt 0:00:05]} Nf6 {[%emt 0:00:10]} 20. Ng4 {[%emt 0:00:09]} Nxg4 {[%emt 0:00:36]} 21. Qxg4 {[%emt 0:00:03]} Qb6 {[%emt 0:00:11]} 22. Qe2 {[%emt 0:00:12]} Qc7 {[%emt 0:00:00]} 23. Kh2 {[%emt 0:00:02]} a5 {[%emt 0:00:11]} 24. f4 {[%emt 0:00:03]} a4 {[%emt 0:00:22]} 25. b4 {[%emt 0:00:08]} Bf8 {[%emt 0:00:00]} 26. a3 {[%emt 0:00:03]} Rd6 {[%emt 0:00:11]} 27. c4 {[%emt 0:00:03]} Red8 {[%emt 0:00:11]} 28. Be5 {[%emt 0:00:04]} Qc8 {[%emt 0:00:17]} 29. Bxd6 Bxd6 {[%emt 0:00:01]} 30. c5 {[%emt 0:00:02]} Be7 {[%emt 0:00:03]} 31. Rxd8+ {[%emt 0:00:01]} Bxd8 {[%emt 0:00:10]} 32. Rd1 {[%emt 0:00:03]} Kf8 {[%emt 0:00:18]} 33. e5 {[%emt 0:00:05]} Ke8 {[%emt 0:00:12]} 34. Be4 {[%emt 0:00:03]} Bg8 {[%emt 0:00:02]} 35. Qc2 {[%emt 0:00:03]} g6 {[%emt 0:00:03]} 36. Qxa4 {[%emt 0:00:02]} Qb8 {[%emt 0:00:10]} 37. b5 {[%emt 0:00:01]} cxb5 {[%emt 0:00:05]} 38. Qxb5+ {[%emt 0:00:02]} Kf8 {[%emt 0:00:03]} 39. Bxb7 {[%emt 0:00:02]} Be7 {[%emt 0:00:08]} 40. c6 {[%emt 0:00:04]} Qa7 {[%emt 0:00:01]} 41. Qe2 {[%emt 0:00:07]} Qb8 {[%emt 0:00:19]} 42. Qe3 {[%emt 0:00:09]} Bd8 {[%emt 0:00:30]} 43. Qd4 {[%emt 0:00:33]} Bc7 {[%emt 0:00:03]} 44. a4 {[%emt 0:00:01]} h5 {[%emt 0:00:06]} 45. Ra1 {[%emt 0:00:06]} h4 {[%emt 0:00:15]} 46. a5 {[%emt 0:00:02]} hxg3+ {[%emt 0:00:06]} 47. Kg2 {[%emt 0:00:01]} f6 {[%emt 0:00:10]} 48. a6 {[%emt 0:00:03]} fxe5 {[%emt 0:00:05]} 49. Qg1 {[%emt 0:00:07]} Qd8 {[%emt 0:00:10]} 50. Qd1 {[%emt 0:00:03]} Qf6 {[%emt 0:00:04]} 51. a7 {[%emt 0:00:02]} Qxf4 {[%emt 0:00:02]} 52. a8=Q+ {[%emt 0:00:05]} Kg7 {[%emt 0:00:01]} 53. Qa3 {[%emt 0:00:15]} Qf2+ {[%emt 0:00:01]} 0-1

[Event "3rd FIDE WCCC Blitz U12 2019"]
[Site "Minsk"]
[Date "2019.08.18"]
[Round "7.4"]
[White "Mochalov, Dmitriy"]
[Black "Bialiauski, Artsiom"]
[Result "1-0"]
[ECO "C84"]
[WhiteElo "1852"]
[BlackElo "1844"]
[Annotator "NA"]
[PlyCount "93"]
[EventDate "2019.08.18"]
[EventType "swiss"]
[EventCountry "BLR"]
[SourceTitle "playchess.com"]
[Source "ChessBase"]
[SourceQuality "1"]
[TimeControl "300+2"]

1. e4 {[%emt 0:00:00]} e5 {[%emt 0:00:00]} 2. Nf3 {[%emt 0:00:00]} Nc6 {[%emt 0:00:00]} 3. Bb5 {[%emt 0:00:04]} a6 {[%emt 0:00:01]} 4. Ba4 {[%emt 0:00:01]} Nf6 {[%emt 0:00:01]} 5. O-O {[%emt 0:00:06]} Be7 {[%emt 0:00:02]} 6. d3 {[%emt 0:00:01]} b5 {[%emt 0:00:05]} 7. Bb3 {[%emt 0:00:01]} d6 {[%emt 0:00:02]} 8. c3 {[%emt 0:00:07]} O-O {[%emt 0:00:04]} 9. h3 {[%emt 0:00:01]} Na5 {[%emt 0:00:01]} 10. Bc2 {[%emt 0:00:01]} c5 {[%emt 0:00:01]} 11. a4 {[%emt 0:00:02]} Bd7 {[%emt 0:00:21]} 12. Nbd2 {[%emt 0:00:04]} Nc6 {[%emt 0:00:07]} 13. Re1 {[%emt 0:00:02]} Re8 {[%emt 0:00:17]} 14. Nf1 {[%emt 0:00:02]} g6 {[%emt 0:00:08]} 15. Ng3 {[%emt 0:00:01]} Bf8 {[%emt 0:00:00]} 16. d4 {[%emt 0:00:19]} Bg7 {[%emt 0:00:27]} 17. Be3 {[%emt 0:00:19]} cxd4 {[%emt 0:00:11]} 18. cxd4 {[%emt 0:00:01]} Rc8 {[%emt 0:00:13]} 19. axb5 {[%emt 0:00:01]} axb5 {[%emt 0:00:01]} 20. d5 {[%emt 0:00:24]} Ne7 {[%emt 0:00:27]} 21. Ra7 {[%emt 0:00:09]} Ra8 {[%emt 0:00:38]} 22. Qa1 {[%emt 0:00:12]} Qb8 {[%emt 0:00:23]} 23. Ra5 {[%emt 0:00:46]} Qb7 {[%emt 0:00:21]} 24. b4 {[%emt 0:00:28]} Rxa5 {[%emt 0:00:29]} 25. bxa5 {[%emt 0:00:02]} Qa6 {[%emt 0:00:06]} 26. Qa3 {[%emt 0:00:10]} Rc8 {[%emt 0:00:04]} 27. Bd3 {[%emt 0:00:03]} Ne8 {[%emt 0:00:21]} 28. Rb1 {[%emt 0:00:26]} f5 {[%emt 0:00:16]} 29. Bg5 {[%emt 0:00:39]} fxe4 {[%emt 0:00:09]} 30. Bxe4 {[%emt 0:00:01]} Nf5 {[%emt 0:00:03]} 31. Ne2 {[%emt 0:00:26]} b4 {[%emt 0:00:07]} 32. Qa2 {[%emt 0:00:22]} Ra8 {[%emt 0:00:10]} 33. Rxb4 {[%emt 0:00:01]} Qxa5 {[%emt 0:00:01]} 34. Qxa5 {[%emt 0:00:01]} Rxa5 {[%emt 0:00:01]} 35. Rb7 {[%emt 0:00:06]} Bc8 {[%emt 0:00:10]} 36. Rb8 {[%emt 0:00:01]} Rc5 {[%emt 0:00:02]} 37. Nd2 {[%emt 0:00:10]} h6 {[%emt 0:00:06]} 38. Nb3 Rc4 39. Bd3 {[%emt 0:00:03]} Ra4 {[%emt 0:00:19]} 40. Rxc8 {[%emt 0:00:01]} hxg5 {[%emt 0:00:01]} 41. Rxe8+ {[%emt 0:00:01]} Kf7 {[%emt 0:00:01]} 42. Rc8 {[%emt 0:00:06]} Ra3 {[%emt 0:00:01]} 43. Bc4 {[%emt 0:00:01]} Ne7 {[%emt 0:00:02]} 44. Rc7 {[%emt 0:00:02]} Bf6 {[%emt 0:00:02]} 45. Ng3 {[%emt 0:00:01]} Ra4 {[%emt 0:00:04]} 46. Ne4 {[%emt 0:00:01]} Ra3 {[%emt 0:00:02]} 47. Nxd6+ {[%emt 0:00:01]} 1-0

[Event "3rd FIDE WCCC Blitz U12 2019"]
[Site "Minsk"]
[Date "2019.08.18"]
[Round "7.5"]
[White "Cherniaiev, Tykhon"]
[Black "Hoang, Minh Hieu"]
[Result "0-1"]
[ECO "C00"]
[WhiteElo "2112"]
[BlackElo "1685"]
[Annotator "NA"]
[PlyCount "172"]
[EventDate "2019.08.18"]
[EventType "swiss"]
[EventCountry "BLR"]
[SourceTitle "playchess.com"]
[Source "ChessBase"]
[SourceQuality "1"]
[TimeControl "300+2"]

1. e4 {[%emt 0:00:00]} e6 {[%emt 0:00:00]} 2. Nc3 {[%emt 0:00:00]} d5 {[%emt 0:00:00]} 3. g3 {[%emt 0:00:02]} c5 {[%emt 0:00:10]} 4. exd5 exd5 {[%emt 0:00:01]} 5. Bg2 {[%emt 0:00:05]} Be6 {[%emt 0:00:07]} 6. d3 {[%emt 0:00:04]} Nc6 {[%emt 0:00:03]} 7. Nge2 {[%emt 0:00:04]} Nf6 {[%emt 0:00:09]} 8. O-O {[%emt 0:00:04]} Be7 {[%emt 0:00:01]} 9. Bg5 {[%emt 0:00:03]} O-O {[%emt 0:00:03]} 10. Nf4 {[%emt 0:00:01]} h6 {[%emt 0:00:08]} 11. Bxf6 {[%emt 0:00:02]} Bxf6 {[%emt 0:00:01]} 12. Nfxd5 {[%emt 0:00:08]} Bxd5 {[%emt 0:00:02]} 13. Nxd5 {[%emt 0:00:02]} Bxb2 {[%emt 0:00:02]} 14. Rb1 {[%emt 0:00:01]} Bd4 {[%emt 0:00:23]} 15. Rxb7 {[%emt 0:00:03]} Rb8 {[%emt 0:00:24]} 16. Rxb8 {[%emt 0:00:28]} Nxb8 {[%emt 0:00:05]} 17. c3 {[%emt 0:00:16]} Be5 {[%emt 0:00:04]} 18. Qa4 {[%emt 0:00:02]} Qd7 {[%emt 0:00:10]} 19. Qe4 {[%emt 0:00:29]} Bd6 {[%emt 0:00:21]} 20. Re1 {[%emt 0:00:11]} Na6 {[%emt 0:00:07]} 21. h4 {[%emt 0:00:20]} Rb8 {[%emt 0:00:15]} 22. Ne7+ {[%emt 0:00:54]} Kh8 {[%emt 0:00:47]} 23. Nf5 {[%emt 0:00:07]} Bf8 {[%emt 0:00:02]} 24. Ne3 {[%emt 0:00:16]} Nc7 {[%emt 0:00:05]} 25. Qc4 {[%emt 0:00:10]} Rd8 {[%emt 0:00:23]} 26. Rd1 {[%emt 0:00:10]} Kg8 {[%emt 0:00:14]} 27. d4 {[%emt 0:00:09]} Qb5 {[%emt 0:00:01]} 28. Qxb5 {[%emt 0:00:14]} Nxb5 {[%emt 0:00:01]} 29. dxc5 {[%emt 0:00:14]} Rxd1+ {[%emt 0:00:07]} 30. Nxd1 {[%emt 0:00:01]} Bxc5 {[%emt 0:00:01]} 31. Kf1 {[%emt 0:00:05]} Kf8 {[%emt 0:00:01]} 32. Ke2 {[%emt 0:00:01]} Ke7 {[%emt 0:00:03]} 33. Kd3 {[%emt 0:00:03]} Kd6 {[%emt 0:00:06]} 34. Ne3 {[%emt 0:00:03]} g6 {[%emt 0:00:15]} 35. Nc4+ {[%emt 0:00:05]} Ke6 {[%emt 0:00:01]} 36. Ne3 {[%emt 0:00:02]} Kd6 {[%emt 0:00:03]} 37. Bf3 {[%emt 0:00:18]} Nc7 {[%emt 0:00:28]} 38. h5 {[%emt 0:00:01]} Ne6 {[%emt 0:00:09]} 39. hxg6 fxg6 {[%emt 0:00:01]} 40. Be4 {[%emt 0:00:02]} Nf8 {[%emt 0:00:12]} 41. f4 {[%emt 0:00:04]} Ke6 {[%emt 0:00:08]} 42. Ng4 {[%emt 0:00:04]} h5 {[%emt 0:00:04]} 43. Ne3 {[%emt 0:00:01]} Bd6 {[%emt 0:00:02]} 44. Ng2 {[%emt 0:00:04]} Kf6 {[%emt 0:00:06]} 45. Ke3 {[%emt 0:00:05]} g5 {[%emt 0:00:02]} 46. fxg5+ Kxg5 {[%emt 0:00:01]} 47. Kf2 {[%emt 0:00:14]} Ne6 {[%emt 0:00:05]} 48. Nh4 {[%emt 0:00:02]} Nc5 {[%emt 0:00:01]} 49. Bc2 {[%emt 0:00:02]} Kg4 {[%emt 0:00:10]} 50. Bf5+ {[%emt 0:00:21]} Kg5 {[%emt 0:00:00]} 51. Kf3 {[%emt 0:00:06]} Na4 {[%emt 0:00:05]} 52. c4 {[%emt 0:00:03]} Nc3 {[%emt 0:00:01]} 53. Bc2 {[%emt 0:00:12]} Nxa2 {[%emt 0:00:01]} 54. Nf5 {[%emt 0:00:01]} Bf8 {[%emt 0:00:01]} 55. Ne3 {[%emt 0:00:04]} Nb4 {[%emt 0:00:02]} 56. Ba4 {[%emt 0:00:02]} Bc5 {[%emt 0:00:01]} 57. Nf1 {[%emt 0:00:03]} a5 {[%emt 0:00:03]} 58. Nh2 {[%emt 0:00:03]} Nd3 {[%emt 0:00:01]} 59. Ke4 {[%emt 0:00:02]} Nb2 {[%emt 0:00:02]} 60. Bb3 {[%emt 0:00:02]} a4 {[%emt 0:00:00]} 61. Ba2 {[%emt 0:00:01]} a3 {[%emt 0:00:02]} 62. Kd5 {[%emt 0:00:01]} Nd3 {[%emt 0:00:01]} 63. Nf3+ {[%emt 0:00:03]} Kg4 {[%emt 0:00:00]} 64. Ne5+ Nxe5 {[%emt 0:00:01]} 65. Kxc5 {[%emt 0:00:04]} Kxg3 {[%emt 0:00:01]} 66. Kd5 {[%emt 0:00:02]} Nxc4 {[%emt 0:00:01]} 67. Bxc4 {[%emt 0:00:02]} h4 {[%emt 0:00:01]} 68. Kc5 {[%emt 0:00:01]} h3 {[%emt 0:00:01]} 69. Kb4 {[%emt 0:00:01]} h2 {[%emt 0:00:02]} 70. Bd5 {[%emt 0:00:01]} a2 {[%emt 0:00:01]} 71. Bxa2 {[%emt 0:00:02]} h1=Q {[%emt 0:00:02]} 72. Bc4 {[%emt 0:00:01]} Qb1+ {[%emt 0:00:01]} 73. Kc3 {[%emt 0:00:00]} Kf4 {[%emt 0:00:01]} 74. Kd4 {[%emt 0:00:02]} Qd1+ {[%emt 0:00:01]} 75. Kc5 {[%emt 0:00:00]} Ke5 {[%emt 0:00:00]} 76. Kb4 {[%emt 0:00:01]} Qc2 {[%emt 0:00:01]} 77. Kb5 {[%emt 0:00:01]} Kd4 78. Bf1 Qc5+ {[%emt 0:00:06]} 79. Ka4 {[%emt 0:00:02]} Qb6 {[%emt 0:00:00]} 80. Be2 {[%emt 0:00:01]} Kc3 {[%emt 0:00:01]} 81. Bb5 {[%emt 0:00:01]} Kd4 {[%emt 0:00:02]} 82. Bf1 {[%emt 0:00:01]} Kc5 {[%emt 0:00:01]} 83. Ka3 {[%emt 0:00:02]} Qb4+ {[%emt 0:00:01]} 84. Ka2 {[%emt 0:00:00]} Kd4 {[%emt 0:00:00]} 85. Be2 {[%emt 0:00:01]} Kc3 {[%emt 0:00:01]} 86. Bd1 {[%emt 0:00:02]} Qb2# {[%emt 0:00:01]} 0-1

[Event "3rd FIDE WCCC Blitz U12 2019"]
[Site "Minsk"]
[Date "2019.08.18"]
[Round "7.6"]
[White "Burbach, Brunel Baron"]
[Black "Khubukshanov, Erdem"]
[Result "0-1"]
[ECO "B31"]
[WhiteElo "1548"]
[BlackElo "2257"]
[Annotator "NA"]
[PlyCount "56"]
[EventDate "2019.08.18"]
[EventType "swiss"]
[EventCountry "BLR"]
[SourceTitle "playchess.com"]
[Source "ChessBase"]
[SourceQuality "1"]
[TimeControl "300+2"]

1. e4 {[%emt 0:00:00]} c5 {[%emt 0:00:00]} 2. Nf3 {[%emt 0:00:00]} Nc6 {[%emt 0:00:00]} 3. Bb5 {[%emt 0:00:02]} g6 {[%emt 0:00:00]} 4. c3 {[%emt 0:00:05]} Nf6 {[%emt 0:00:03]} 5. d3 {[%emt 0:00:09]} Bg7 {[%emt 0:00:05]} 6. O-O {[%emt 0:00:02]} O-O {[%emt 0:00:02]} 7. Be3 {[%emt 0:00:04]} d6 {[%emt 0:00:03]} 8. Nbd2 {[%emt 0:00:07]} Qb6 {[%emt 0:00:08]} 9. Bxc6 {[%emt 0:00:08]} Qxc6 {[%emt 0:00:03]} 10. Re1 {[%emt 0:00:11]} b6 {[%emt 0:00:27]} 11. Qc2 {[%emt 0:00:29]} Bb7 {[%emt 0:00:05]} 12. Rac1 {[%emt 0:00:38]} Rac8 {[%emt 0:00:02]} 13. h3 {[%emt 0:00:24]} a6 {[%emt 0:00:16]} 14. a3 {[%emt 0:00:39]} b5 {[%emt 0:00:10]} 15. b4 {[%emt 0:00:05]} cxb4 {[%emt 0:00:02]} 16. axb4 {[%emt 0:00:03]} Nd7 {[%emt 0:00:09]} 17. Nd4 {[%emt 0:00:14]} Qc7 {[%emt 0:00:01]} 18. Qb2 {[%emt 0:00:38]} d5 {[%emt 0:00:12]} 19. exd5 {[%emt 0:00:05]} Bxd5 {[%emt 0:00:03]} 20. c4 {[%emt 0:00:46]} bxc4 {[%emt 0:00:03]} 21. dxc4 {[%emt 0:00:01]} Ba8 {[%emt 0:00:01]} 22. Qa3 {[%emt 0:00:11]} Qb7 {[%emt 0:00:14]} 23. N2f3 {[%emt 0:00:06]} f5 {[%emt 0:00:22]} 24. Ne6 {[%emt 0:00:10]} Rf7 {[%emt 0:00:02]} 25. Nxg7 {[%emt 0:00:02]} Rxg7 {[%emt 0:00:03]} 26. Bh6 {[%emt 0:00:06]} Rf7 {[%emt 0:00:03]} 27. Rcd1 {[%emt 0:00:18]} Rxc4 {[%emt 0:00:35]} 28. Be3 {[%emt 0:00:09]} Ne5 {[%emt 0:00:14]} 0-1